[Event "44th Chess Olympiad Women 2022"]
[Site "Chennai"]
[Date "2022.08.08"]
[Round "10.29"]
[White "Sim, Jia Ru"]
[Black "Caku, Kler"]
[Result "0-1"]
[WhiteElo "2005"]
[BlackElo "1626"]
[Annotator "NA RC"]
[PlyCount "116"]
[EventDate "2022.??.??"]
[TimeControl "60"]

1. e4 {[%emt 0:00:05]} e5 {[%emt 0:00:05]} 2. Nf3 {[%emt 0:00:07]} Nc6 {
[%emt 0:00:04]} 3. Bb5 {[%emt 0:00:06]} a6 {[%emt 0:00:07]} 4. Ba4 {[%emt 0:00:
00]} Nf6 {[%emt 0:00:06]} 5. O-O {[%emt 0:00:07]} b5 {[%emt 0:00:13]} 6. Bb3 {
[%emt 0:00:08]} Be7 {[%emt 0:00:08]} 7. Re1 {[%emt 0:00:09]} d6 {[%emt 0:00:23]
} 8. c3 {[%emt 0:00:11]} O-O {[%emt 0:00:22]} 9. h3 {[%emt 0:00:10]} Na5 {
[%emt 0:00:21]} 10. Bc2 {[%emt 0:00:48]} c5 {[%emt 0:00:33]} 11. d4 {[%emt 0:
00:00]} Nc6 {[%emt 0:01:15]} 12. d5 {[%emt 0:01:08]} Nb8 {[%emt 0:00:37]} 13.
Nbd2 {[%emt 0:00:55]} Nbd7 {[%emt 0:01:46]} 14. a4 {[%emt 0:02:18]} Rb8 {
[%emt 0:05:29]} 15. axb5 {[%emt 0:04:52]} axb5 {[%emt 0:00:46]} 16. b4 {
[%emt 0:00:56]} c4 {[%emt 0:02:17]} 17. Nf1 {[%emt 0:06:14]} Re8 {[%emt 0:00:
00]} 18. Be3 {[%emt 0:01:17]} Nf8 {[%emt 0:06:00]} 19. Qd2 {[%emt 0:02:38]} Bb7
{[%emt 0:05:24]} 20. Ra7 {[%emt 0:04:07]} Qd7 {[%emt 0:03:17]} 21. Ng3 {
[%emt 0:07:07]} Ra8 {[%emt 0:07:51]} 22. Rea1 {[%emt 0:06:53]} Rxa7 {[%emt 0:
00:00]} 23. Rxa7 {[%emt 0:00:12]} Ra8 {[%emt 0:00:38]} 24. Rxa8 {[%emt 0:00:18]
} Bxa8 {[%emt 0:00:13]} 25. Nf5 {[%emt 0:01:04]} Ng6 {[%emt 0:02:36]} 26. Qc1 {
[%emt 0:16:20]} Bb7 {[%emt 0:05:32]} 27. Qa1 {[%emt 0:05:54]} Bf8 {[%emt 0:00:
00]} 28. Qa7 {[%emt 0:03:11]} Bc8 {[%emt 0:05:02]} 29. Qb6 {[%emt 0:08:13]} Ne8
{[%emt 0:04:57]} 30. Nd2 {[%emt 0:02:11]} Ne7 {[%emt 0:04:58]} 31. Ng3 {
[%emt 0:04:36]} Qb7 {[%emt 0:04:28]} 32. Ne2 {[%emt 0:04:54]} f5 {[%emt 0:00:
00]} 33. Qxb7 {[%emt 0:00:28]} Bxb7 {[%emt 0:00:12]} 34. f3 {[%emt 0:00:09]}
Nf6 {[%emt 0:01:48]} 35. Nb1 {[%emt 0:01:51]} Kf7 {[%emt 0:01:44]} 36. Na3 {
[%emt 0:00:44]} Ba6 {[%emt 0:00:21]} 37. g4 {[%emt 0:03:43]} f4 {[%emt 0:01:38]
} 38. Bxf4 {[%emt 0:04:15]} exf4 {[%emt 0:01:02]} 39. Nxf4 {[%emt 0:00:06]} Ng6
{[%emt 0:02:14]} 40. Ne6 {[%emt 0:01:12]} Ne8 {[%emt 0:01:57]} 41. Kf2 {
[%emt 0:36:36]} Be7 {[%emt 0:32:37]} 42. Ke3 {[%emt 0:01:26]} Bf6 {[%emt 0:00:
00]} 43. Nb1 {[%emt 0:00:27]} Bc8 {[%emt 0:01:36]} 44. f4 {[%emt 0:00:26]} Bxe6
{[%emt 0:05:55]} 45. dxe6+ {[%emt 0:00:11]} Kf8 {[%emt 0:01:23]} 46. g5 {
[%emt 0:01:16]} Bd8 {[%emt 0:00:44]} 47. Nd2 {[%emt 0:00:19]} Ke7 {[%emt 0:00:
00]} 48. Nf3 {[%emt 0:02:00]} Bb6+ {[%emt 0:00:00]} 49. Nd4 {[%emt 0:00:00]}
Bxd4+ {[%emt 0:00:00]} 50. cxd4 {[%emt 0:00:00]} Nc7 {[%emt 0:00:00]} 51. f5 {
[%emt 0:00:00]} Nh4 {[%emt 0:00:00]} 52. d5 {[%emt 0:00:00]} Na6 {[%emt 0:00:
00]} 53. e5 {[%emt 0:00:00]} dxe5 {[%emt 0:00:00]} 54. Ke4 {[%emt 0:00:00]}
Nxb4 {[%emt 0:00:00]} 55. Kxe5 {[%emt 0:00:00]} Nf3+ {[%emt 0:00:00]} 56. Kf4 {
[%emt 0:00:00]} Nxc2 {[%emt 0:00:00]} 57. Kxf3 {[%emt 0:00:00]} Nd4+ {[%emt 0:
00:00]} 58. Ke4 {[%emt 0:00:00]} Nxf5 {[%emt 0:00:04]} 0-1

[Event "44th Chess Olympiad Women 2022"]
[Site "Chennai"]
[Date "2022.08.08"]
[Round "10.30"]
[White "Avila Fraire, Ameyalli"]
[Black "Nikolovska, Dragana"]
[Result "1-0"]
[WhiteElo "1907"]
[BlackElo "1876"]
[Annotator "NA RC"]
[PlyCount "81"]
[EventDate "2022.??.??"]
[TimeControl "60"]

1. e4 {[%emt 0:00:07]} c5 {[%emt 0:00:08]} 2. Nf3 {[%emt 0:00:06]} d6 {[%emt 0:
00:00]} 3. d4 {[%emt 0:00:05]} cxd4 {[%emt 0:00:07]} 4. Nxd4 {[%emt 0:00:12]}
Nf6 {[%emt 0:00:10]} 5. Nc3 {[%emt 0:00:14]} g6 {[%emt 0:00:13]} 6. Be3 {
[%emt 0:00:23]} Bg7 {[%emt 0:00:13]} 7. f3 {[%emt 0:00:08]} O-O {[%emt 0:00:18]
} 8. Qd2 {[%emt 0:00:11]} Nc6 {[%emt 0:00:13]} 9. O-O-O {[%emt 0:00:25]} d5 {
[%emt 0:00:30]} 10. Nxc6 {[%emt 0:00:09]} bxc6 {[%emt 0:00:10]} 11. Bh6 {
[%emt 0:00:43]} Bxh6 {[%emt 0:29:51]} 12. Qxh6 {[%emt 0:00:12]} e5 {[%emt 0:00:
00]} 13. exd5 {[%emt 0:06:35]} cxd5 {[%emt 0:00:34]} 14. h4 {[%emt 0:04:36]}
Rb8 {[%emt 0:07:45]} 15. h5 {[%emt 0:05:06]} Qb6 {[%emt 0:03:34]} 16. b3 {
[%emt 0:21:50]} Bb7 {[%emt 0:25:25]} 17. hxg6 {[%emt 0:06:14]} fxg6 {[%emt 0:
00:00]} 18. Rxd5 {[%emt 0:03:29]} Qc7 {[%emt 0:08:34]} 19. Bc4 {[%emt 0:11:49]}
Bxd5 {[%emt 0:06:07]} 20. Nxd5 {[%emt 0:00:20]} Nxd5 {[%emt 0:00:22]} 21. Bxd5+
{[%emt 0:00:09]} Kh8 {[%emt 0:01:05]} 22. Qxg6 {[%emt 0:00:36]} a5 {[%emt 0:00:
00]} 23. Qc6 {[%emt 0:04:33]} Qa7 {[%emt 0:02:05]} 24. Qc3 {[%emt 0:01:06]}
Rfe8 {[%emt 0:02:56]} 25. Be4 {[%emt 0:00:38]} Re7 {[%emt 0:00:27]} 26. a4 {
[%emt 0:04:17]} Qd4 {[%emt 0:02:54]} 27. Qxd4 {[%emt 0:00:36]} exd4 {[%emt 0:
00:00]} 28. Rh5 {[%emt 0:00:24]} Rg7 {[%emt 0:02:45]} 29. g4 {[%emt 0:00:23]}
Rc7 {[%emt 0:00:05]} 30. Rxa5 {[%emt 0:00:20]} Rxb3 {[%emt 0:00:28]} 31. Ra7 {
[%emt 0:08:50]} Rbc3 {[%emt 0:00:38]} 32. Rxc7 {[%emt 0:00:34]} Rxc7 {[%emt 0:
00:00]} 33. Kb2 {[%emt 0:00:19]} Ra7 {[%emt 0:03:12]} 34. Kb3 {[%emt 0:00:10]}
Kg7 {[%emt 0:00:11]} 35. Kb4 {[%emt 0:00:07]} Kf6 {[%emt 0:00:34]} 36. Kb5 {
[%emt 0:00:20]} Ke5 {[%emt 0:00:42]} 37. a5 {[%emt 0:00:22]} Kd6 {[%emt 0:00:
00]} 38. Kb6 {[%emt 0:00:10]} Rc7 {[%emt 0:00:35]} 39. a6 {[%emt 0:00:14]} Rc4
{[%emt 0:00:28]} 40. a7 {[%emt 0:01:28]} Rb4+ {[%emt 0:00:32]} 41. Ka5 {
[%emt 0:30:07]} 1-0

[Event "44th Chess Olympiad Women 2022"]
[Site "Chennai"]
[Date "2022.08.08"]
[Round "10.30"]
[White "Corrales Jimenez, Zenia"]
[Black "Stojkovska, Monika"]
[Result "1-0"]
[WhiteElo "2143"]
[BlackElo "2091"]
[Annotator "NA RC"]
[PlyCount "93"]
[EventDate "2022.??.??"]
[TimeControl "60"]

1. e4 {[%emt 0:00:05]} c5 {[%emt 0:00:07]} 2. Nf3 {[%emt 0:00:17]} d6 {[%emt 0:
00:00]} 3. d4 {[%emt 0:01:12]} cxd4 {[%emt 0:00:06]} 4. Qd2 {[%emt 0:00:13]} d3
5. Qxd3 {[%emt 0:00:29]} Nc6 {[%emt 0:00:34]} 6. Qe3 {[%emt 0:02:48]} Nf6 {
[%emt 0:02:36]} 7. Be2 {[%emt 0:00:14]} e6 {[%emt 0:02:26]} 8. c4 {[%emt 0:00:
00]} Be7 {[%emt 0:00:49]} 9. O-O {[%emt 0:01:37]} O-O {[%emt 0:01:07]} 10. Nc3
{[%emt 0:00:13]} Qc7 {[%emt 0:11:29]} 11. h3 {[%emt 0:08:17]} Rd8 {[%emt 0:00:
00]} 12. Rd1 {[%emt 0:02:47]} a6 {[%emt 0:04:24]} 13. b3 {[%emt 0:06:31]} d5 {
[%emt 0:15:55]} 14. e5 {[%emt 0:18:53]} d4 {[%emt 0:05:38]} 15. Nxd4 {[%emt 0:
00:00]} Rxd4 {[%emt 0:08:14]} 16. exf6 {[%emt 0:11:28]} Rxd1+ {[%emt 0:02:28]}
17. Bxd1 {[%emt 0:00:21]} Bxf6 {[%emt 0:00:44]} 18. Nd5 {[%emt 0:02:48]} Qd8 {
[%emt 0:02:40]} 19. Nxf6+ {[%emt 0:00:08]} Qxf6 {[%emt 0:00:14]} 20. Rb1 {
[%emt 0:00:06]} e5 {[%emt 0:10:02]} 21. Rb2 {[%emt 0:08:43]} Bf5 {[%emt 0:00:
00]} 22. Rd2 {[%emt 0:02:17]} Rd8 {[%emt 0:01:19]} 23. Bb2 {[%emt 0:05:45]}
Rxd2 {[%emt 0:07:35]} 24. Qxd2 {[%emt 0:00:06]} Qe7 {[%emt 0:00:54]} 25. Bf3 {
[%emt 0:05:30]} e4 {[%emt 0:04:40]} 26. Be2 {[%emt 0:04:32]} Qd7 {[%emt 0:00:
00]} 27. Qxd7 {[%emt 0:07:56]} Bxd7 {[%emt 0:00:02]} 28. f3 {[%emt 0:00:06]}
Bf5 {[%emt 0:04:05]} 29. Kf2 {[%emt 0:03:31]} f6 {[%emt 0:00:06]} 30. Ke3 {
[%emt 0:01:14]} exf3 {[%emt 0:00:04]} 31. Bxf3 {[%emt 0:00:04]} Kf7 {[%emt 0:
00:00]} 32. b4 {[%emt 0:01:15]} Bc8 {[%emt 0:01:31]} 33. b5 {[%emt 0:00:41]}
axb5 {[%emt 0:00:17]} 34. cxb5 {[%emt 0:00:01]} Ne5 {[%emt 0:00:06]} 35. Bxe5 {
[%emt 0:02:49]} fxe5 {[%emt 0:00:01]} 36. Ke4 {[%emt 0:00:09]} Kf6 {[%emt 0:00:
00]} 37. b6 {[%emt 0:02:25]} Bd7 {[%emt 0:00:56]} 38. Ke3 {[%emt 0:00:28]} Bc8
{[%emt 0:00:09]} 39. a4 {[%emt 0:00:42]} Ke7 {[%emt 0:00:16]} 40. a5 {[%emt 0:
00:00]} Kd6 {[%emt 0:00:29]} 41. a6 {[%emt 0:30:04]} bxa6 {[%emt 0:30:11]} 42.
b7 {[%emt 0:00:05]} Bxb7 {[%emt 0:00:19]} 43. Bxb7 {[%emt 0:00:02]} a5 {
[%emt 0:00:06]} 44. Ke4 {[%emt 0:00:12]} a4 {[%emt 0:00:04]} 45. Bd5 {[%emt 0:
00:00]} a3 {[%emt 0:00:07]} 46. Ba2 {[%emt 0:00:04]} g6 {[%emt 0:00:18]} 47. g4
{[%emt 0:00:16]} 1-0

[Event "44th Chess Olympiad Women 2022"]
[Site "Chennai"]
[Date "2022.08.08"]
[Round "10.30"]
[White "Eftovska, Lea"]
[Black "Hernandez Diaz, Paula Sofia"]
[Result "0-1"]
[WhiteElo "1634"]
[BlackElo "1751"]
[Annotator "NA RC"]
[PlyCount "80"]
[EventDate "2022.??.??"]
[TimeControl "60"]

1. e4 {[%emt 0:00:08]} c5 {[%emt 0:00:04]} 2. Nc3 {[%emt 0:00:06]} Nc6 {
[%emt 0:00:06]} 3. f4 {[%emt 0:00:13]} g6 {[%emt 0:00:05]} 4. Nf3 {[%emt 0:00:
00]} Bg7 {[%emt 0:00:06]} 5. Bb5 {[%emt 0:01:09]} Nd4 {[%emt 0:00:43]} 6. O-O {
[%emt 0:00:20]} a6 {[%emt 0:01:40]} 7. Bd3 {[%emt 0:04:25]} e6 {[%emt 0:00:53]}
8. Nxd4 {[%emt 0:01:40]} cxd4 {[%emt 0:00:23]} 9. Ne2 {[%emt 0:00:11]} d5 {
[%emt 0:12:31]} 10. e5 {[%emt 0:09:58]} Ne7 {[%emt 0:05:25]} 11. b3 {[%emt 0:
00:00]} Nc6 {[%emt 0:09:05]} 12. Bb2 {[%emt 0:12:38]} Qb6 {[%emt 0:04:54]} 13.
Qe1 {[%emt 0:01:17]} Bd7 {[%emt 0:04:13]} 14. Qh4 {[%emt 0:04:21]} Bf8 {
[%emt 0:07:35]} 15. a3 {[%emt 0:03:18]} Be7 {[%emt 0:05:23]} 16. Qf2 {[%emt 0:
00:00]} a5 {[%emt 0:01:25]} 17. Kh1 {[%emt 0:02:34]} f6 {[%emt 0:11:36]} 18.
exf6 {[%emt 0:12:41]} Bxf6 {[%emt 0:01:45]} 19. Qf3 {[%emt 0:11:24]} O-O-O {
[%emt 0:11:38]} 20. b4 {[%emt 0:07:19]} axb4 {[%emt 0:09:06]} 21. axb4 {
[%emt 0:00:15]} Kc7 {[%emt 0:00:23]} 22. c3 {[%emt 0:10:04]} dxc3 {[%emt 0:00:
00]} 23. Bxc3 {[%emt 0:00:35]} Bxc3 {[%emt 0:08:50]} 24. Nxc3 {[%emt 0:00:49]}
Ra8 {[%emt 0:01:24]} 25. Nb5+ {[%emt 0:01:52]} Kb8 {[%emt 0:00:19]} 26. Rxa8+ {
[%emt 0:01:56]} Kxa8 {[%emt 0:00:07]} 27. Ra1+ {[%emt 0:00:16]} Kb8 {[%emt 0:
00:00]} 28. f5 {[%emt 0:03:15]} gxf5 {[%emt 0:01:39]} 29. Qg3+ {[%emt 0:00:34]}
e5 {[%emt 0:00:25]} 30. Qg7 {[%emt 0:00:42]} Rd8 {[%emt 0:00:06]} 31. Qf6 {
[%emt 0:00:49]} Bc8 {[%emt 0:00:29]} 32. Na7 {[%emt 0:01:44]} Qd4 {[%emt 0:00:
00]} 33. Nxc6+ {[%emt 0:01:16]} bxc6 {[%emt 0:00:09]} 34. Ra2 {[%emt 0:02:46]}
Qxd3 {[%emt 0:00:27]} 35. Qxe5+ {[%emt 0:00:25]} Kb7 {[%emt 0:00:13]} 36. Qe7+
{[%emt 0:00:23]} Rd7 {[%emt 0:00:33]} 37. Qe1 {[%emt 0:00:11]} Qd4 {[%emt 0:00:
00]} 38. Qb1 {[%emt 0:00:37]} Re7 {[%emt 0:00:39]} 39. b5 {[%emt 0:00:49]} c5 {
[%emt 0:00:27]} 40. d3 {[%emt 0:00:38]} Qb4 {[%emt 0:00:25]} 0-1

[Event "44th Chess Olympiad Women 2022"]
[Site "Chennai"]
[Date "2022.08.08"]
[Round "10.30"]
[White "Manova, Ivana"]
[Black "Guillen Cristobal, Sandra N"]
[Result "0-1"]
[WhiteElo "1849"]
[BlackElo "1962"]
[Annotator "NA RC"]
[PlyCount "144"]
[EventDate "2022.??.??"]
[TimeControl "60"]

1. e4 {[%emt 0:00:06]} c5 {[%emt 0:00:07]} 2. Nf3 {[%emt 0:00:12]} Nc6 {
[%emt 0:00:05]} 3. Bb5 {[%emt 0:00:18]} g6 {[%emt 0:00:08]} 4. Bxc6 {[%emt 0:
00:00]} dxc6 {[%emt 0:00:11]} 5. d3 {[%emt 0:00:16]} Bg7 {[%emt 0:00:10]} 6. h3
{[%emt 0:00:37]} Nf6 {[%emt 0:00:22]} 7. O-O {[%emt 0:01:20]} Nd7 {[%emt 0:00:
00]} 8. c3 {[%emt 0:03:03]} e5 {[%emt 0:01:11]} 9. Be3 {[%emt 0:03:15]} b6 {
[%emt 0:00:44]} 10. a4 {[%emt 0:01:49]} a5 {[%emt 0:03:02]} 11. d4 {[%emt 0:00:
00]} cxd4 {[%emt 0:00:43]} 12. cxd4 {[%emt 0:00:04]} O-O {[%emt 0:01:00]} 13.
Nc3 {[%emt 0:20:14]} Qe7 {[%emt 0:16:45]} 14. d5 {[%emt 0:06:14]} Bb7 {[%emt 0:
00:00]} 15. dxc6 {[%emt 0:19:53]} Bxc6 {[%emt 0:00:10]} 16. Nd5 {[%emt 0:00:06]
} Bxd5 {[%emt 0:05:11]} 17. Qxd5 {[%emt 0:00:03]} Rfe8 {[%emt 0:01:10]} 18. Qb5
{[%emt 0:08:33]} Nc5 {[%emt 0:14:03]} 19. Bxc5 {[%emt 0:01:58]} bxc5 {[%emt 0:
00:00]} 20. Rfc1 {[%emt 0:01:41]} Bf8 {[%emt 0:00:20]} 21. Rc2 {[%emt 0:04:05]}
Reb8 {[%emt 0:02:45]} 22. Qc6 {[%emt 0:00:15]} Ra7 {[%emt 0:01:57]} 23. Nd2 {
[%emt 0:03:56]} Rc7 {[%emt 0:02:20]} 24. Qa6 {[%emt 0:00:42]} Ra7 {[%emt 0:00:
00]} 25. Qc6 {[%emt 0:01:22]} Rc7 {[%emt 0:04:37]} 26. Qa6 {[%emt 0:00:24]} Rb4
{[%emt 0:16:38]} 27. Nc4 {[%emt 0:02:06]} Ra7 {[%emt 0:00:10]} 28. Qc6 {
[%emt 0:00:51]} Rc7 {[%emt 0:01:43]} 29. Qd5 {[%emt 0:00:47]} Rd7 {[%emt 0:00:
00]} 30. Qxe5 {[%emt 0:00:37]} Qd8 {[%emt 0:01:21]} 31. Qc3 {[%emt 0:05:29]}
Rd3 {[%emt 0:01:46]} 32. Qe1 {[%emt 0:02:07]} Qd4 {[%emt 0:00:21]} 33. Ne3 {
[%emt 0:04:19]} Qxe4 {[%emt 0:00:54]} 34. Ng4 {[%emt 0:01:58]} Qxe1+ {[%emt 0:
00:00]} 35. Rxe1 {[%emt 0:00:02]} Kg7 {[%emt 0:00:22]} 36. Ne5 {[%emt 0:01:06]}
Rdb3 {[%emt 0:00:29]} 37. Ree2 {[%emt 0:01:09]} Rxa4 {[%emt 0:00:13]} 38. Nc4 {
[%emt 0:00:28]} Rbb4 {[%emt 0:00:39]} 39. Na3 {[%emt 0:00:34]} Bd6 {[%emt 0:00:
00]} 40. Rc3 {[%emt 0:00:32]} Rd4 {[%emt 0:00:32]} 41. g3 {[%emt 0:01:00]} c4 {
[%emt 0:15:15]} 42. Kg2 {[%emt 0:12:41]} Bxa3 {[%emt 0:03:19]} 43. bxa3 {
[%emt 0:00:08]} Rd3 {[%emt 0:00:22]} 44. Re3 {[%emt 0:00:44]} Rd4 {[%emt 0:00:
00]} 45. Kf3 {[%emt 0:04:32]} f5 {[%emt 0:00:51]} 46. Ke2 {[%emt 0:03:31]} Kf6
{[%emt 0:00:39]} 47. f4 {[%emt 0:01:00]} h6 {[%emt 0:00:31]} 48. Kf3 {[%emt 0:
00:00]} g5 {[%emt 0:01:16]} 49. fxg5+ {[%emt 0:04:46]} hxg5 {[%emt 0:00:07]}
50. Ke2 {[%emt 0:00:44]} f4 {[%emt 0:01:15]} 51. gxf4 {[%emt 0:00:30]} gxf4 {
[%emt 0:00:06]} 52. Re8 {[%emt 0:01:13]} Rd3 {[%emt 0:00:33]} 53. Rxd3 {
[%emt 0:02:26]} cxd3+ {[%emt 0:00:08]} 54. Kxd3 {[%emt 0:00:02]} Rxa3+ {
[%emt 0:00:24]} 55. Kd4 {[%emt 0:01:40]} Rxh3 {[%emt 0:00:22]} 56. Ra8 {
[%emt 0:00:09]} Ra3 {[%emt 0:00:57]} 57. Ke4 {[%emt 0:00:19]} Ra4+ {[%emt 0:00:
00]} 58. Kf3 {[%emt 0:00:04]} Kf5 {[%emt 0:02:28]} 59. Rf8+ {[%emt 0:00:22]}
Ke6 {[%emt 0:00:14]} 60. Re8+ {[%emt 0:00:22]} Kd6 {[%emt 0:00:43]} 61. Rh8 {
[%emt 0:01:46]} Rc4 {[%emt 0:00:40]} 62. Ra8 {[%emt 0:00:34]} a4 {[%emt 0:00:
00]} 63. Ra5 {[%emt 0:00:28]} Kc6 {[%emt 0:00:05]} 64. Ke2 {[%emt 0:00:34]} Kb6
{[%emt 0:00:13]} 65. Ra8 {[%emt 0:00:15]} Rd4 {[%emt 0:00:44]} 66. Kf3 {
[%emt 0:00:34]} Kb5 {[%emt 0:00:15]} 67. Ra7 {[%emt 0:00:17]} Kb4 {[%emt 0:00:
00]} 68. Rb7+ {[%emt 0:00:24]} Kc3 {[%emt 0:00:11]} 69. Ra7 {[%emt 0:00:10]}
Kb3 {[%emt 0:00:12]} 70. Rh7 {[%emt 0:00:58]} a3 {[%emt 0:00:55]} 71. Rh2 {
[%emt 0:00:47]} a2 {[%emt 0:00:00]} 72. Rh1 {[%emt 0:00:02]} Kc2 {[%emt 0:00:
00]} 0-1

[Event "44th Chess Olympiad Women 2022"]
[Site "Chennai"]
[Date "2022.08.08"]
[Round "10.31"]
[White "Hng, Mei-Xian Eunice"]
[Black "Lampard, Alice"]
[Result "1-0"]
[WhiteElo "1823"]
[BlackElo "1729"]
[Annotator "NA RC"]
[PlyCount "55"]
[EventDate "2022.??.??"]
[TimeControl "60"]

1. e4 {[%emt 0:00:23]} c5 {[%emt 0:00:04]} 2. d4 {[%emt 0:00:10]} cxd4 {
[%emt 0:00:06]} 3. c3 {[%emt 0:00:03]} dxc3 {[%emt 0:00:31]} 4. Nxc3 {[%emt 0:
00:00]} Nc6 {[%emt 0:00:52]} 5. Bc4 {[%emt 0:00:12]} d6 {[%emt 0:01:25]} 6. Nf3
{[%emt 0:00:20]} a6 {[%emt 0:02:39]} 7. O-O {[%emt 0:01:03]} Nf6 {[%emt 0:00:
00]} 8. Bf4 {[%emt 0:02:06]} Bg4 {[%emt 0:03:06]} 9. h3 {[%emt 0:00:34]} Bxf3 {
[%emt 0:01:51]} 10. Qxf3 {[%emt 0:00:05]} e6 {[%emt 0:03:26]} 11. Rfd1 {
[%emt 0:01:36]} Qa5 {[%emt 0:01:00]} 12. Be2 {[%emt 0:17:28]} e5 {[%emt 0:00:
00]} 13. Be3 {[%emt 0:06:58]} Be7 {[%emt 0:07:46]} 14. Qg3 {[%emt 0:11:27]} Rg8
{[%emt 0:32:22]} 15. a3 {[%emt 0:06:26]} b5 {[%emt 0:02:50]} 16. b4 {[%emt 0:
00:00]} Qd8 {[%emt 0:00:14]} 17. Rac1 {[%emt 0:01:02]} Rc8 {[%emt 0:00:42]} 18.
Nxb5 {[%emt 0:08:42]} Kf8 {[%emt 0:07:50]} 19. Nxd6 {[%emt 0:02:16]} Bxd6 {
[%emt 0:01:09]} 20. Rxd6 {[%emt 0:00:06]} Qe8 {[%emt 0:02:07]} 21. Bc5 {
[%emt 0:08:13]} Ne7 {[%emt 0:01:18]} 22. Qxe5 {[%emt 0:00:44]} Rd8 {[%emt 0:00:
00]} 23. Rxd8 {[%emt 0:01:37]} Qxd8 {[%emt 0:00:11]} 24. Rd1 {[%emt 0:00:07]}
Qe8 {[%emt 0:00:15]} 25. Bxa6 {[%emt 0:01:44]} Nd7 {[%emt 0:04:01]} 26. Qc7 {
[%emt 0:03:37]} Nxc5 {[%emt 0:00:00]} 27. bxc5 {[%emt 0:03:23]} Nc6 {[%emt 0:
00:00]} 28. Bb5 {[%emt 0:00:16]} 1-0

[Event "44th Chess Olympiad Women 2022"]
[Site "Chennai"]
[Date "2022.08.08"]
[Round "10.31"]
[White "Hughes, Rhian"]
[Black "Fang, Kun"]
[Result "0-1"]
[WhiteElo "1843"]
[BlackElo "1766"]
[Annotator "NA RC"]
[PlyCount "48"]
[EventDate "2022.??.??"]
[TimeControl "60"]

1. c4 {[%emt 0:00:03]} c6 {[%emt 0:00:05]} 2. Nc3 {[%emt 0:00:07]} d5 {[%emt 0:
00:00]} 3. cxd5 {[%emt 0:00:05]} cxd5 {[%emt 0:00:08]} 4. d4 {[%emt 0:00:03]}
Nf6 {[%emt 0:00:12]} 5. Nf3 {[%emt 0:02:32]} Nc6 {[%emt 0:00:04]} 6. e3 {
[%emt 0:01:08]} Bf5 {[%emt 0:04:54]} 7. a3 {[%emt 0:00:38]} a6 {[%emt 0:01:33]}
8. Bd3 {[%emt 0:00:40]} Bxd3 {[%emt 0:00:12]} 9. Qxd3 {[%emt 0:00:05]} e6 {
[%emt 0:00:05]} 10. O-O {[%emt 0:00:17]} Be7 {[%emt 0:02:03]} 11. b4 {[%emt 0:
00:00]} b5 {[%emt 0:01:14]} 12. Bb2 {[%emt 0:00:31]} Nd7 {[%emt 0:02:46]} 13.
Nd2 {[%emt 0:05:25]} Nb6 {[%emt 0:00:25]} 14. f4 {[%emt 0:05:00]} f5 {[%emt 0:
00:00]} 15. Qe2 {[%emt 0:04:12]} O-O {[%emt 0:01:44]} 16. Rf3 {[%emt 0:05:55]}
Nc4 {[%emt 0:03:18]} 17. Nb3 {[%emt 0:04:05]} Bd6 {[%emt 0:04:15]} 18. Rh3 {
[%emt 0:08:20]} Qe7 {[%emt 0:10:40]} 19. Kh1 {[%emt 0:09:48]} Rfb8 {[%emt 0:00:
00]} 20. Nc5 {[%emt 0:18:53]} a5 {[%emt 0:01:06]} 21. Na2 {[%emt 0:02:54]} Ra7
{[%emt 0:00:40]} 22. Bc1 {[%emt 0:08:00]} axb4 {[%emt 0:01:53]} 23. Rb1 {
[%emt 0:08:26]} bxa3 {[%emt 0:00:24]} 24. Nd3 {[%emt 0:01:53]} b4 {[%emt 0:00:
00]} 0-1

[Event "44th Chess Olympiad Women 2022"]
[Site "Chennai"]
[Date "2022.08.08"]
[Round "10.31"]
[White "Khegay, Anjela"]
[Black "Cooke, Suzie G."]
[Result "1-0"]
[WhiteElo "2131"]
[BlackElo "1936"]
[Annotator "NA RC"]
[PlyCount "117"]
[EventDate "2022.??.??"]
[TimeControl "60"]

1. d4 {[%emt 0:00:02]} d5 {[%emt 0:00:05]} 2. c4 {[%emt 0:00:09]} e6 {[%emt 0:
00:00]} 3. Nc3 {[%emt 0:00:10]} c5 {[%emt 0:00:05]} 4. Nf3 {[%emt 0:00:34]} Nc6
{[%emt 0:00:25]} 5. cxd5 {[%emt 0:00:14]} exd5 {[%emt 0:01:15]} 6. dxc5 {
[%emt 0:00:37]} d4 {[%emt 0:05:21]} 7. Na4 {[%emt 0:00:07]} Bxc5 {[%emt 0:00:
00]} 8. Nxc5 {[%emt 0:00:06]} Qa5+ {[%emt 0:00:04]} 9. Bd2 {[%emt 0:00:14]}
Qxc5 {[%emt 0:00:04]} 10. e3 {[%emt 0:00:10]} Nf6 {[%emt 0:01:34]} 11. exd4 {
[%emt 0:01:58]} Nxd4 {[%emt 0:05:25]} 12. Nxd4 {[%emt 0:05:17]} Qxd4 {[%emt 0:
00:00]} 13. Bb5+ {[%emt 0:00:43]} Bd7 {[%emt 0:08:08]} 14. Qe2+ {[%emt 0:02:19]
} Kf8 {[%emt 0:05:16]} 15. Bxd7 {[%emt 0:00:41]} Qxd7 {[%emt 0:06:47]} 16. O-O
{[%emt 0:08:42]} Re8 {[%emt 0:07:33]} 17. Be3 {[%emt 0:00:00]} Kg8 {[%emt 0:00:
00]} 18. Rfd1 {[%emt 0:00:00]} Qf5 {[%emt 0:05:33]} 19. Qc4 {[%emt 0:00:00]} h6
{[%emt 0:05:51]} 20. Bxa7 {[%emt 0:00:00]} Ng4 {[%emt 0:05:31]} 21. a4 {
[%emt 0:04:06]} Re4 {[%emt 0:05:41]} 22. Rd8+ {[%emt 0:04:09]} Kh7 {[%emt 0:00:
00]} 23. Rxh8+ {[%emt 0:00:11]} Kxh8 {[%emt 0:00:04]} 24. Qc5 {[%emt 0:01:03]}
Qe6 {[%emt 0:12:14]} 25. Qc3 {[%emt 0:04:27]} Rc4 {[%emt 0:01:14]} 26. Qd2 {
[%emt 0:01:39]} Qe5 {[%emt 0:01:19]} 27. g3 {[%emt 0:06:07]} Qe4 {[%emt 0:00:
00]} 28. Re1 {[%emt 0:01:21]} Qf5 {[%emt 0:01:11]} 29. b3 {[%emt 0:01:27]} Rc8
{[%emt 0:04:16]} 30. Bd4 {[%emt 0:04:04]} Nf6 {[%emt 0:04:19]} 31. Bxf6 {
[%emt 0:00:56]} Qxf6 {[%emt 0:00:07]} 32. Qd7 {[%emt 0:00:36]} Rc2 {[%emt 0:00:
00]} 33. Qe8+ {[%emt 0:04:36]} Kh7 {[%emt 0:00:03]} 34. Qe4+ {[%emt 0:00:14]}
Qg6 {[%emt 0:00:02]} 35. Qxb7 {[%emt 0:00:30]} Rb2 {[%emt 0:00:43]} 36. a5 {
[%emt 0:04:56]} Qf6 {[%emt 0:00:38]} 37. Qe4+ {[%emt 0:03:53]} g6 {[%emt 0:00:
00]} 38. Qe3 {[%emt 0:00:13]} Kg7 {[%emt 0:00:57]} 39. h4 {[%emt 0:01:40]} h5 {
[%emt 0:00:29]} 40. Rc1 {[%emt 0:00:31]} Ra2 {[%emt 0:00:42]} 41. b4 {[%emt 0:
00:00]} Rb2 {[%emt 0:33:20]} 42. Qc5 {[%emt 0:02:02]} Rb3 {[%emt 0:00:45]} 43.
b5 {[%emt 0:00:47]} Qb2 {[%emt 0:00:00]} 44. b6 {[%emt 0:00:00]} Rb5 {[%emt 0:
00:00]} 45. Qc3+ {[%emt 0:00:00]} Qxc3 {[%emt 0:00:00]} 46. Rxc3 {[%emt 0:00:
00]} Rxa5 {[%emt 0:00:00]} 47. Rb3 {[%emt 0:00:00]} Ra8 {[%emt 0:00:00]} 48. b7
{[%emt 0:00:00]} Rb8 {[%emt 0:00:00]} 49. Kg2 {[%emt 0:00:00]} Kf6 {[%emt 0:00:
00]} 50. Kf3 {[%emt 0:00:00]} Ke6 {[%emt 0:00:00]} 51. Kf4 {[%emt 0:00:00]} f6
{[%emt 0:00:00]} 52. Rb6+ {[%emt 0:00:00]} Ke7 {[%emt 0:00:00]} 53. Ke4 {
[%emt 0:00:00]} g5 {[%emt 0:00:00]} 54. Kf5 {[%emt 0:00:00]} gxh4 {[%emt 0:00:
00]} 55. gxh4 {[%emt 0:00:00]} Kd7 {[%emt 0:00:00]} 56. Rxf6 {[%emt 0:00:00]}
Kc7 {[%emt 0:00:00]} 57. Rf7+ {[%emt 0:00:00]} Kc6 {[%emt 0:00:00]} 58. Kg6 {
[%emt 0:00:00]} Rh8 {[%emt 0:00:00]} 59. f4 {[%emt 0:00:00]} 1-0